[Event "10th Tal Memorial 2016 - Blitz"]
[Site "Moscow"]
[Date "2016.09.25"]
[Round "1"]
[White "Anand, Viswanathan"]
[Black "Gelfand, Boris"]
[Result "1/2-1/2"]
[ECO "B90"]
[WhiteElo "2776"]
[BlackElo "2743"]
[Annotator "ChessBase"]
[PlyCount "82"]
[EventDate "2016.??.??"]
[EventType "tourn"]
[EventCountry "RUS"]
[SourceTitle "playchess.com"]
[Source "ChessBase"]
[TimeControl "180+2"]

1. e4 {[%emt 0:00:00]} c5 {[%emt 0:00:00]} 2. Nf3 {[%emt 0:00:01]} d6 {[%emt 0:
00:00]} 3. d4 {[%emt 0:00:01]} cxd4 {[%emt 0:00:00]} 4. Nxd4 {[%emt 0:00:02]}
Nf6 {[%emt 0:00:01]} 5. Nc3 {[%emt 0:00:01]} a6 {[%emt 0:00:01]} 6. f3 {
[%emt 0:00:02]} e5 {[%emt 0:00:03]} 7. Nb3 {[%emt 0:00:01]} Be6 {[%emt 0:00:01]
} 8. Be3 {[%emt 0:00:02]} Nbd7 {[%emt 0:00:03]} 9. Qd2 {[%emt 0:00:02]} h5 {
[%emt 0:00:01]} 10. Nd5 {[%emt 0:00:06]} Bxd5 {[%emt 0:00:02]} 11. exd5 {
[%emt 0:00:01]} g6 {[%emt 0:00:02]} 12. Be2 {[%emt 0:00:08]} Bg7 {[%emt 0:00:
01]} 13. O-O {[%emt 0:00:04]} e4 {[%emt 0:00:04]} 14. f4 {[%emt 0:00:15]} Ng4 {
[%emt 0:00:07]} 15. Bd4 {[%emt 0:00:02]} Bxd4+ {[%emt 0:00:17]} 16. Qxd4 {
[%emt 0:00:02]} Qb6 {[%emt 0:00:07]} 17. Qxb6 {[%emt 0:00:16]} Nxb6 {[%emt 0:
00:01]} 18. c4 {[%emt 0:00:01]} Nd7 {[%emt 0:00:42]} 19. Rfe1 {[%emt 0:00:14]}
f5 {[%emt 0:00:05]} 20. h3 {[%emt 0:00:05]} Ngf6 {[%emt 0:00:02]} 21. Kf2 {
[%emt 0:00:01]} h4 {[%emt 0:00:06]} 22. Nd4 {[%emt 0:00:04]} Kf7 {[%emt 0:00:
06]} 23. Rac1 {[%emt 0:00:11]} a5 {[%emt 0:00:10]} 24. Ke3 {[%emt 0:00:14]} Nc5
{[%emt 0:00:04]} 25. b3 {[%emt 0:00:07]} Nh5 {[%emt 0:00:04]} 26. Rb1 {[%emt 0:
00:12]} Ng3 {[%emt 0:00:04]} 27. a3 {[%emt 0:00:03]} Kf6 {[%emt 0:00:12]} 28.
Nb5 {[%emt 0:00:20]} Nxe2 {[%emt 0:00:13]} 29. Rxe2 {[%emt 0:00:03]} Rhd8 {
[%emt 0:00:03]} 30. g3 {[%emt 0:00:08]} hxg3 {[%emt 0:00:09]} 31. Rg2 {[%emt 0:
00:04]} g5 {[%emt 0:00:17]} 32. Rxg3 {[%emt 0:00:04]} gxf4+ {[%emt 0:00:01]}
33. Kxf4 {[%emt 0:00:01]} Nd3+ {[%emt 0:00:01]} 34. Rxd3 {[%emt 0:00:02]} exd3
{[%emt 0:00:03]} 35. Rd1 {[%emt 0:00:02]} Rh8 {[%emt 0:00:00]} 36. Rxd3 {
[%emt 0:00:19]} Rh4+ {[%emt 0:00:02]} 37. Kg3 {[%emt 0:00:01]} Rah8 {[%emt 0:
00:02]} 38. Kg2 {[%emt 0:00:02]} Ke5 {[%emt 0:00:04]} 39. c5 {[%emt 0:00:01]}
dxc5 {[%emt 0:00:04]} 40. d6 {[%emt 0:00:01]} Rg8+ {[%emt 0:00:07]} 41. Kf2 {
[%emt 0:00:04]} Rf4+ {[%emt 0:00:05]} 1/2-1/2

[Event "10th Tal Memorial 2016 - Blitz"]
[Site "Moscow"]
[Date "2016.09.25"]
[Round "1"]
[White "Aronian, Levon"]
[Black "Nepomniachtchi, Ian"]
[Result "1-0"]
[ECO "A34"]
[WhiteElo "2795"]
[BlackElo "2740"]
[Annotator "ChessBase"]
[PlyCount "95"]
[EventDate "2016.??.??"]
[EventType "tourn"]
[EventCountry "RUS"]
[SourceTitle "playchess.com"]
[Source "ChessBase"]
[TimeControl "180+2"]

1. c4 {[%emt 0:00:00]} Nf6 {[%emt 0:00:00]} 2. Nc3 {[%emt 0:00:00]} c5 {
[%emt 0:00:02]} 3. g3 {[%emt 0:00:01]} g6 {[%emt 0:00:04]} 4. Bg2 {[%emt 0:00:
02]} Bg7 {[%emt 0:00:01]} 5. e4 {[%emt 0:00:04]} O-O {[%emt 0:00:02]} 6. Nge2 {
[%emt 0:00:02]} Nc6 {[%emt 0:00:01]} 7. O-O {[%emt 0:00:02]} d6 {[%emt 0:00:03]
} 8. d3 {[%emt 0:00:01]} a6 {[%emt 0:00:03]} 9. h3 {[%emt 0:00:03]} Rb8 {
[%emt 0:00:00]} 10. a4 {[%emt 0:00:02]} Nd7 {[%emt 0:00:04]} 11. f4 {[%emt 0:
00:21]} Nd4 {[%emt 0:00:01]} 12. Kh2 {[%emt 0:00:08]} b6 {[%emt 0:00:13]} 13.
Be3 {[%emt 0:00:11]} Bb7 {[%emt 0:00:01]} 14. Bg1 {[%emt 0:00:02]} f5 {[%emt 0:
00:09]} 15. Rb1 {[%emt 0:00:27]} e6 {[%emt 0:00:01]} 16. b4 {[%emt 0:00:14]}
Ba8 {[%emt 0:00:05]} 17. Qd2 {[%emt 0:00:31]} Qc7 {[%emt 0:00:05]} 18. Qa2 {
[%emt 0:00:13]} Rbe8 {[%emt 0:00:05]} 19. a5 {[%emt 0:00:08]} bxa5 {[%emt 0:00:
17]} 20. Qxa5 {[%emt 0:00:33]} Qxa5 {[%emt 0:00:01]} 21. bxa5 {[%emt 0:00:01]}
Nc6 {[%emt 0:00:01]} 22. Na4 {[%emt 0:00:10]} Rb8 {[%emt 0:00:14]} 23. e5 {
[%emt 0:00:10]} dxe5 {[%emt 0:00:05]} 24. Bxc5 {[%emt 0:00:00]} Rfd8 {[%emt 0:
00:27]} 25. Bd6 {[%emt 0:00:01]} Rxb1 26. Rxb1 Nxa5 {[%emt 0:00:24]} 27. Bc7 {
[%emt 0:00:01]} Bxg2 {[%emt 0:00:21]} 28. Kxg2 {[%emt 0:00:01]} Nc6 {[%emt 0:
00:07]} 29. Bxd8 {[%emt 0:00:02]} Nxd8 {[%emt 0:00:00]} 30. fxe5 {[%emt 0:00:
03]} Nxe5 {[%emt 0:00:03]} 31. Rb8 {[%emt 0:00:03]} Bf6 {[%emt 0:00:05]} 32.
Nf4 {[%emt 0:00:04]} Kf7 {[%emt 0:00:01]} 33. Nc5 {[%emt 0:00:01]} g5 {[%emt 0:
00:09]} 34. Nh5 {[%emt 0:00:06]} Be7 {[%emt 0:00:01]} 35. Nxa6 {[%emt 0:00:04]}
Nxd3 {[%emt 0:00:02]} 36. Nc7 {[%emt 0:00:06]} Ne5 {[%emt 0:00:05]} 37. Rc8 {
[%emt 0:00:05]} Kg6 {[%emt 0:00:21]} 38. g4 {[%emt 0:00:03]} f4 {[%emt 0:00:00]
} 39. Nb5 {[%emt 0:00:01]} Nec6 {[%emt 0:00:17]} 40. Nc3 {[%emt 0:00:02]} Kf7 {
[%emt 0:00:07]} 41. Ne4 {[%emt 0:00:01]} Ne5 {[%emt 0:00:01]} 42. c5 {[%emt 0:
00:03]} Ndc6 {[%emt 0:00:01]} 43. Nd6+ {[%emt 0:00:02]} Bxd6 {[%emt 0:00:04]}
44. cxd6 {[%emt 0:00:00]} h6 {[%emt 0:00:04]} 45. Rc7+ {[%emt 0:00:02]} Ke8 {
[%emt 0:00:07]} 46. Ng7+ {[%emt 0:00:01]} Kd8 {[%emt 0:00:01]} 47. Nxe6+ {
[%emt 0:00:01]} Ke8 {[%emt 0:00:01]} 48. d7+ {[%emt 0:00:03]} 1-0

[Event "10th Tal Memorial 2016 - Blitz"]
[Site "Moscow"]
[Date "2016.09.25"]
[Round "1"]
[White "Giri, Anish"]
[Black "Li, Chao b"]
[Result "1/2-1/2"]
[ECO "B53"]
[WhiteElo "2755"]
[BlackElo "2746"]
[Annotator "ChessBase"]
[PlyCount "264"]
[EventDate "2016.??.??"]
[EventType "tourn"]
[EventCountry "RUS"]
[SourceTitle "playchess.com"]
[Source "ChessBase"]
[TimeControl "180+2"]

1. e4 {[%emt 0:00:00]} c5 {[%emt 0:00:00]} 2. Nf3 {[%emt 0:00:00]} d6 {[%emt 0:
00:04]} 3. d4 {[%emt 0:00:00]} cxd4 {[%emt 0:00:01]} 4. Qxd4 {[%emt 0:00:03]}
Nc6 {[%emt 0:00:04]} 5. Bb5 {[%emt 0:00:01]} Bd7 {[%emt 0:00:01]} 6. Qd3 {
[%emt 0:00:03]} g6 {[%emt 0:00:06]} 7. O-O {[%emt 0:00:05]} Bg7 {[%emt 0:00:02]
} 8. c4 {[%emt 0:00:04]} Nf6 {[%emt 0:00:01]} 9. Nc3 {[%emt 0:00:04]} O-O {
[%emt 0:00:03]} 10. h3 {[%emt 0:00:01]} a6 {[%emt 0:00:01]} 11. Bxc6 {[%emt 0:
00:04]} Bxc6 {[%emt 0:00:02]} 12. Nd4 {[%emt 0:00:04]} Rc8 {[%emt 0:00:06]} 13.
Be3 {[%emt 0:00:16]} Nd7 {[%emt 0:00:03]} 14. b3 {[%emt 0:00:06]} Qa5 {[%emt 0:
00:04]} 15. Rab1 {[%emt 0:00:20]} Nc5 {[%emt 0:00:13]} 16. Qc2 {[%emt 0:00:01]}
Ne6 {[%emt 0:00:01]} 17. Nxc6 {[%emt 0:00:24]} bxc6 {[%emt 0:00:04]} 18. Na4 {
[%emt 0:00:08]} Nd4 {[%emt 0:00:16]} 19. Qd3 {[%emt 0:00:06]} c5 {[%emt 0:00:
01]} 20. f4 {[%emt 0:00:11]} f5 {[%emt 0:00:08]} 21. Kh1 {[%emt 0:00:05]} h5 {
[%emt 0:00:22]} 22. Rbe1 {[%emt 0:00:10]} Kh7 {[%emt 0:00:03]} 23. Bxd4 {
[%emt 0:00:05]} cxd4 {[%emt 0:00:30]} 24. exf5 {[%emt 0:00:01]} Qxf5 {[%emt 0:
00:01]} 25. Qxf5 {[%emt 0:00:01]} Rxf5 {[%emt 0:00:01]} 26. Rxe7 {[%emt 0:00:
01]} Rcf8 {[%emt 0:00:02]} 27. g3 {[%emt 0:00:07]} h4 {[%emt 0:00:03]} 28. Nb2
{[%emt 0:00:06]} hxg3 {[%emt 0:00:01]} 29. Kg2 {[%emt 0:00:19]} g5 {[%emt 0:00:
03]} 30. Kxg3 {[%emt 0:00:09]} gxf4+ {[%emt 0:00:02]} 31. Kf2 {[%emt 0:00:09]}
Ra5 {[%emt 0:00:44]} 32. Rg1 {[%emt 0:00:06]} Rg8 {[%emt 0:00:01]} 33. Nd3 {
[%emt 0:00:13]} Kh8 {[%emt 0:00:41]} 34. Kf3 {[%emt 0:00:20]} Bf6 {[%emt 0:00:
07]} 35. Rxg8+ {[%emt 0:00:02]} Kxg8 {[%emt 0:00:01]} 36. Re2 {[%emt 0:00:03]}
Kf7 {[%emt 0:00:04]} 37. Kxf4 {[%emt 0:00:02]} Rh5 {[%emt 0:00:01]} 38. Kg4 {
[%emt 0:00:01]} Rh4+ {[%emt 0:00:01]} 39. Kg3 {[%emt 0:00:01]} Rh5 {[%emt 0:00:
02]} 40. Re4 {[%emt 0:00:04]} d5 {[%emt 0:00:02]} 41. cxd5 {[%emt 0:00:04]}
Rxd5 {[%emt 0:00:01]} 42. Re2 {[%emt 0:00:02]} Rh5 {[%emt 0:00:02]} 43. Rc2 {
[%emt 0:00:02]} Be7 {[%emt 0:00:04]} 44. Kg4 {[%emt 0:00:03]} Rh4+ 45. Kg3 Re4
{[%emt 0:00:02]} 46. Rf2+ {[%emt 0:00:07]} Ke6 {[%emt 0:00:01]} 47. Nf4+ {
[%emt 0:00:02]} Kd7 {[%emt 0:00:02]} 48. Kf3 {[%emt 0:00:02]} Re3+ {[%emt 0:00:
01]} 49. Kg4 {[%emt 0:00:01]} Bd6 {[%emt 0:00:01]} 50. Kf5 {[%emt 0:00:05]} d3
{[%emt 0:00:05]} 51. Nd5 Re5+ 52. Kf4 Rxd5+ 53. Ke4 Rh5 {[%emt 0:00:05]} 54.
Kxd3 {[%emt 0:00:07]} Rxh3+ {[%emt 0:00:01]} 55. Kc4 {[%emt 0:00:01]} Rh4+ {
[%emt 0:00:02]} 56. Kd3 {[%emt 0:00:01]} Kc6 {[%emt 0:00:01]} 57. Rc2+ {
[%emt 0:00:01]} Kb5 {[%emt 0:00:01]} 58. Rc8 {[%emt 0:00:03]} Bc5 {[%emt 0:00:
01]} 59. Rb8+ {[%emt 0:00:01]} Bb6 {[%emt 0:00:02]} 60. Kc3 {[%emt 0:00:02]}
Rh3+ {[%emt 0:00:01]} 61. Kb2 {[%emt 0:00:00]} a5 {[%emt 0:00:02]} 62. Rc8 {
[%emt 0:00:04]} Bd4+ {[%emt 0:00:01]} 63. Kb1 {[%emt 0:00:01]} Rh1+ {[%emt 0:
00:01]} 64. Kc2 {[%emt 0:00:01]} Rh2+ 65. Kd3 Bb6 {[%emt 0:00:04]} 66. a3 {
[%emt 0:00:03]} Rh3+ {[%emt 0:00:02]} 67. Kc2 {[%emt 0:00:01]} Rh2+ {[%emt 0:
00:09]} 68. Kd3 {[%emt 0:00:01]} Ra2 {[%emt 0:00:01]} 69. a4+ {[%emt 0:00:02]}
Ka6 {[%emt 0:00:02]} 70. Kc3 {[%emt 0:00:03]} Rh2 {[%emt 0:00:03]} 71. Rc4 {
[%emt 0:00:01]} Rh3+ {[%emt 0:00:01]} 72. Kc2 {[%emt 0:00:01]} Rh2+ {[%emt 0:
00:07]} 73. Kb1 {[%emt 0:00:04]} Be3 {[%emt 0:00:03]} 74. b4 {[%emt 0:00:02]}
axb4 {[%emt 0:00:02]} 75. Rxb4 {[%emt 0:00:01]} Ka5 {[%emt 0:00:01]} 76. Rc4 {
[%emt 0:00:02]} Bd2 {[%emt 0:00:02]} 77. Kc2 {[%emt 0:00:01]} Bb4+ {[%emt 0:00:
01]} 78. Kd3 {[%emt 0:00:01]} Rd2+ {[%emt 0:00:01]} 79. Ke3 {[%emt 0:00:01]}
Rd6 {[%emt 0:00:01]} 80. Ke4 {[%emt 0:00:03]} Kxa4 {[%emt 0:00:02]} 81. Rd4 {
[%emt 0:00:01]} Rh6 {[%emt 0:00:02]} 82. Rd5 {[%emt 0:00:01]} Kb3 {[%emt 0:00:
01]} 83. Kf3 {[%emt 0:00:02]} Kc4 {[%emt 0:00:01]} 84. Rd7 {[%emt 0:00:01]} Bc5
{[%emt 0:00:01]} 85. Rb7 {[%emt 0:00:02]} Kd5 {[%emt 0:00:01]} 86. Rb5 {
[%emt 0:00:01]} Rh3+ {[%emt 0:00:02]} 87. Kg4 {[%emt 0:00:01]} Re3 {[%emt 0:00:
01]} 88. Kh5 {[%emt 0:00:01]} Rg3 {[%emt 0:00:01]} 89. Ra5 {[%emt 0:00:01]} Kc6
{[%emt 0:00:03]} 90. Kh4 {[%emt 0:00:01]} Bf2 {[%emt 0:00:02]} 91. Kh5 {
[%emt 0:00:05]} Kd6 {[%emt 0:00:03]} 92. Rg5 {[%emt 0:00:03]} Rf3 {[%emt 0:00:
02]} 93. Ra5 {[%emt 0:00:03]} Ke6 {[%emt 0:00:02]} 94. Ra6+ {[%emt 0:00:01]}
Ke5 {[%emt 0:00:03]} 95. Ra5+ {[%emt 0:00:01]} Kf4 {[%emt 0:00:01]} 96. Ra4+ {
[%emt 0:00:03]} Kf5 {[%emt 0:00:04]} 97. Ra5+ {[%emt 0:00:01]} Ke4 {[%emt 0:00:
00]} 98. Ra4+ {[%emt 0:00:00]} Bd4 {[%emt 0:00:01]} 99. Kh4 {[%emt 0:00:01]}
Rf8 {[%emt 0:00:05]} 100. Kg4 {[%emt 0:00:03]} Rg8+ {[%emt 0:00:02]} 101. Kh4 {
[%emt 0:00:01]} Ke3 {[%emt 0:00:01]} 102. Kh5 {[%emt 0:00:01]} Be5 {[%emt 0:00:
01]} 103. Rg4 {[%emt 0:00:01]} Rh8+ {[%emt 0:00:03]} 104. Kg5 {[%emt 0:00:01]}
Bf4+ {[%emt 0:00:04]} 105. Kf5 {[%emt 0:00:04]} Rh5+ {[%emt 0:00:01]} 106. Ke6
{[%emt 0:00:02]} Ke4 {[%emt 0:00:02]} 107. Rg1 {[%emt 0:00:03]} Rh6+ {[%emt 0:
00:01]} 108. Kd7 {[%emt 0:00:03]} Rd6+ {[%emt 0:00:05]} 109. Ke7 {[%emt 0:00:
01]} Kf5 {[%emt 0:00:02]} 110. Rf1 {[%emt 0:00:08]} Rd2 {[%emt 0:00:01]} 111.
Kf7 {[%emt 0:00:03]} Rd7+ {[%emt 0:00:01]} 112. Kf8 {[%emt 0:00:01]} Ra7 {
[%emt 0:00:04]} 113. Rf2 {[%emt 0:00:02]} Ke5 {[%emt 0:00:02]} 114. Kg8 {
[%emt 0:00:01]} Bg5 {[%emt 0:00:02]} 115. Rf7 {[%emt 0:00:03]} Ra6 {[%emt 0:00:
02]} 116. Rf1 {[%emt 0:00:06]} Bf6 {[%emt 0:00:02]} 117. Kf7 {[%emt 0:00:01]}
Ra7+ {[%emt 0:00:01]} 118. Kg6 {[%emt 0:00:04]} Rg7+ {[%emt 0:00:02]} 119. Kh6
{[%emt 0:00:01]} Rg4 {[%emt 0:00:02]} 120. Kh5 {[%emt 0:00:04]} Rg3 {[%emt 0:
00:01]} 121. Kh6 {[%emt 0:00:10]} Ke6 {[%emt 0:00:01]} 122. Kh5 {[%emt 0:00:01]
} Kf7 {[%emt 0:00:01]} 123. Rf4 {[%emt 0:00:02]} Rg2 {[%emt 0:00:04]} 124. Rf1
{[%emt 0:00:03]} Rg5+ {[%emt 0:00:02]} 125. Kh6 {[%emt 0:00:00]} Rg4 {[%emt 0:
00:01]} 126. Rf5 {[%emt 0:00:02]} Ke6 {[%emt 0:00:05]} 127. Rf1 {[%emt 0:00:04]
} Kf7 {[%emt 0:00:03]} 128. Rf5 {[%emt 0:00:00]} Rg3 {[%emt 0:00:03]} 129. Kh5
{[%emt 0:00:02]} Kg7 {[%emt 0:00:02]} 130. Rf4 {[%emt 0:00:03]} Kf7 {[%emt 0:
00:02]} 131. Rf5 {[%emt 0:00:00]} Ke6 {[%emt 0:00:01]} 132. Rf1 {[%emt 0:00:04]
} Rg5+ {[%emt 0:00:03]} 1/2-1/2

[Event "10th Tal Memorial 2016 - Blitz"]
[Site "Moscow"]
[Date "2016.09.25"]
[Round "1"]
[White "Kramnik, Vladimir"]
[Black "Tomashevsky, Evgeny"]
[Result "1/2-1/2"]
[ECO "D03"]
[WhiteElo "2808"]
[BlackElo "2731"]
[Annotator "ChessBase"]
[PlyCount "89"]
[EventDate "2016.??.??"]
[EventType "tourn"]
[EventCountry "RUS"]
[SourceTitle "playchess.com"]
[Source "ChessBase"]
[TimeControl "180+2"]

1. d4 {[%emt 0:00:00]} Nf6 {[%emt 0:00:00]} 2. Nf3 {[%emt 0:00:00]} d5 {
[%emt 0:00:03]} 3. Bg5 {[%emt 0:00:01]} g6 {[%emt 0:00:16]} 4. e3 {[%emt 0:00:
04]} Bg7 {[%emt 0:00:02]} 5. Nbd2 {[%emt 0:00:02]} O-O {[%emt 0:00:05]} 6. Be2
{[%emt 0:00:02]} c5 {[%emt 0:00:12]} 7. c3 {[%emt 0:00:01]} b6 {[%emt 0:00:18]}
8. O-O {[%emt 0:00:04]} Nc6 {[%emt 0:00:01]} 9. h3 {[%emt 0:00:06]} Bb7 {
[%emt 0:00:08]} 10. Qb1 {[%emt 0:00:02]} a5 {[%emt 0:00:37]} 11. Rd1 {[%emt 0:
00:07]} e6 {[%emt 0:00:03]} 12. a4 {[%emt 0:00:31]} Qc8 {[%emt 0:00:05]} 13.
Bb5 {[%emt 0:00:11]} Na7 {[%emt 0:00:03]} 14. Bf1 {[%emt 0:00:05]} Nc6 {
[%emt 0:00:10]} 15. Qa2 {[%emt 0:00:03]} Ba6 {[%emt 0:00:04]} 16. Bxa6 {
[%emt 0:00:14]} Qxa6 {[%emt 0:00:02]} 17. Rac1 {[%emt 0:00:04]} cxd4 {[%emt 0:
00:14]} 18. exd4 {[%emt 0:00:17]} b5 {[%emt 0:00:01]} 19. Bxf6 {[%emt 0:00:05]}
Bxf6 {[%emt 0:00:01]} 20. Nb3 {[%emt 0:00:02]} Be7 {[%emt 0:00:12]} 21. Re1 {
[%emt 0:00:21]} bxa4 {[%emt 0:00:07]} 22. Qxa4 {[%emt 0:00:01]} Rfb8 {[%emt 0:
00:01]} 23. Rc2 {[%emt 0:00:06]} Qb5 {[%emt 0:00:05]} 24. Qxb5 {[%emt 0:00:02]}
Rxb5 {[%emt 0:00:01]} 25. Nc1 {[%emt 0:00:03]} a4 {[%emt 0:00:15]} 26. Nd3 {
[%emt 0:00:01]} Rba5 {[%emt 0:00:01]} 27. g3 {[%emt 0:00:11]} R5a7 {[%emt 0:00:
12]} 28. Kg2 {[%emt 0:00:02]} Bd6 {[%emt 0:00:13]} 29. h4 {[%emt 0:00:02]} Na5
{[%emt 0:00:05]} 30. h5 {[%emt 0:00:13]} a3 {[%emt 0:00:04]} 31. bxa3 {[%emt 0:
00:03]} Nc4 {[%emt 0:00:01]} 32. Rh1 {[%emt 0:00:04]} Rxa3 {[%emt 0:00:02]} 33.
hxg6 {[%emt 0:00:04]} hxg6 {[%emt 0:00:01]} 34. Rb1 {[%emt 0:00:07]} Ra2 {
[%emt 0:00:05]} 35. Rxa2 Rxa2 {[%emt 0:00:01]} 36. Rb3 {[%emt 0:00:25]} Ra3 {
[%emt 0:00:02]} 37. Rxa3 {[%emt 0:00:04]} Nxa3 {[%emt 0:00:03]} 38. Nd2 {
[%emt 0:00:07]} Nb5 {[%emt 0:00:03]} 39. Nb1 {[%emt 0:00:02]} Bc7 {[%emt 0:00:
01]} 40. Nc1 {[%emt 0:00:04]} Ba5 {[%emt 0:00:07]} 41. Ne2 {[%emt 0:00:01]} Kg7
{[%emt 0:00:01]} 42. Kf3 {[%emt 0:00:02]} Nd6 {[%emt 0:00:04]} 43. Nd2 {
[%emt 0:00:01]} Nb5 {[%emt 0:00:01]} 44. Nb1 {[%emt 0:00:01]} Nd6 {[%emt 0:00:
01]} 45. Nd2 {[%emt 0:00:00]} 1/2-1/2

[Event "10th Tal Memorial 2016 - Blitz"]
[Site "Moscow"]
[Date "2016.09.25"]
[Round "1"]
[White "Mamedyarov, Shakhriyar"]
[Black "Svidler, Peter"]
[Result "1/2-1/2"]
[ECO "D90"]
[WhiteElo "2761"]
[BlackElo "2745"]
[Annotator "ChessBase"]
[PlyCount "64"]
[EventDate "2016.??.??"]
[EventType "tourn"]
[EventCountry "RUS"]
[SourceTitle "playchess.com"]
[Source "ChessBase"]
[TimeControl "180+2"]

1. d4 {[%emt 0:00:00]} Nf6 {[%emt 0:00:00]} 2. c4 {[%emt 0:00:00]} g6 {[%emt 0:
00:00]} 3. Nc3 {[%emt 0:00:01]} d5 {[%emt 0:00:01]} 4. Nf3 {[%emt 0:00:01]} Bg7
{[%emt 0:00:00]} 5. cxd5 {[%emt 0:00:01]} Nxd5 {[%emt 0:00:04]} 6. Bg5 {
[%emt 0:00:02]} Nxc3 {[%emt 0:00:24]} 7. bxc3 {[%emt 0:00:01]} c5 {[%emt 0:00:
02]} 8. e3 {[%emt 0:00:02]} O-O {[%emt 0:00:03]} 9. Be2 {[%emt 0:00:08]} Nc6 {
[%emt 0:00:02]} 10. O-O {[%emt 0:00:03]} Be6 {[%emt 0:00:05]} 11. Qa4 {[%emt 0:
00:06]} h6 {[%emt 0:00:27]} 12. Bh4 {[%emt 0:00:01]} g5 {[%emt 0:00:00]} 13.
Bg3 {[%emt 0:00:02]} Qa5 {[%emt 0:00:01]} 14. Qc2 {[%emt 0:00:14]} Rac8 {
[%emt 0:00:01]} 15. Qb2 {[%emt 0:00:13]} cxd4 {[%emt 0:00:17]} 16. cxd4 {
[%emt 0:00:12]} Qb4 {[%emt 0:00:01]} 17. Qxb4 {[%emt 0:00:06]} Nxb4 {[%emt 0:
00:01]} 18. Rab1 {[%emt 0:00:01]} Nxa2 {[%emt 0:00:08]} 19. Rxb7 {[%emt 0:00:
02]} a5 {[%emt 0:00:03]} 20. Rxe7 {[%emt 0:00:05]} Nc3 {[%emt 0:00:01]} 21. Ba6
{[%emt 0:00:03]} Rc6 {[%emt 0:00:27]} 22. Bd3 {[%emt 0:00:03]} Ra8 {[%emt 0:00:
10]} 23. e4 {[%emt 0:00:09]} Bc4 {[%emt 0:00:12]} 24. Bxc4 {[%emt 0:00:47]}
Rxc4 {[%emt 0:00:01]} 25. Ra1 {[%emt 0:00:43]} Ne2+ {[%emt 0:00:18]} 26. Kf1 {
[%emt 0:00:08]} Nxd4 {[%emt 0:00:01]} 27. Nxd4 {[%emt 0:00:10]} Bxd4 {[%emt 0:
00:02]} 28. Ra2 {[%emt 0:00:01]} a4 {[%emt 0:00:03]} 29. Be5 {[%emt 0:00:09]}
Bxe5 {[%emt 0:00:24]} 30. Rxe5 {[%emt 0:00:01]} Rac8 {[%emt 0:00:01]} 31. g3 {
[%emt 0:00:08]} Rb4 {[%emt 0:00:05]} 32. Ra5 {[%emt 0:00:05]} Rxe4 {[%emt 0:00:
01]} 1/2-1/2

[Event "10th Tal Memorial 2016 - Blitz"]
[Site "Moscow"]
[Date "2016.09.25"]
[Round "2"]
[White "Gelfand, Boris"]
[Black "Mamedyarov, Shakhriyar"]
[Result "0-1"]
[ECO "A22"]
[WhiteElo "2743"]
[BlackElo "2761"]
[Annotator "ChessBase"]
[PlyCount "62"]
[EventDate "2016.??.??"]
[EventType "tourn"]
[EventCountry "RUS"]
[SourceTitle "playchess.com"]
[Source "ChessBase"]
[TimeControl "180+2"]

1. c4 {[%emt 0:00:00]} Nf6 {[%emt 0:00:02]} 2. Nc3 {[%emt 0:00:00]} e5 {
[%emt 0:00:01]} 3. g3 {[%emt 0:00:02]} Nc6 {[%emt 0:00:02]} 4. Bg2 {[%emt 0:00:
01]} g6 {[%emt 0:00:02]} 5. d3 {[%emt 0:00:03]} Bg7 {[%emt 0:00:00]} 6. e3 {
[%emt 0:00:02]} O-O {[%emt 0:00:02]} 7. Nge2 {[%emt 0:00:01]} d6 {[%emt 0:00:
01]} 8. O-O {[%emt 0:00:02]} Be6 {[%emt 0:00:02]} 9. Nd5 {[%emt 0:00:02]} Rb8 {
[%emt 0:00:07]} 10. Nec3 {[%emt 0:00:02]} Ne7 {[%emt 0:00:07]} 11. Nxf6+ {
[%emt 0:00:09]} Bxf6 {[%emt 0:00:01]} 12. e4 {[%emt 0:00:11]} Bg7 {[%emt 0:00:
06]} 13. Be3 {[%emt 0:00:01]} a6 {[%emt 0:00:02]} 14. Rc1 {[%emt 0:00:07]} b5 {
[%emt 0:00:10]} 15. b3 {[%emt 0:00:05]} f5 {[%emt 0:00:19]} 16. exf5 {[%emt 0:
00:09]} gxf5 {[%emt 0:00:19]} 17. f4 {[%emt 0:00:12]} bxc4 {[%emt 0:00:06]} 18.
dxc4 {[%emt 0:00:08]} e4 {[%emt 0:00:12]} 19. Qd2 {[%emt 0:00:13]} c6 {[%emt 0:
00:20]} 20. Rfd1 {[%emt 0:00:04]} d5 {[%emt 0:00:08]} 21. Na4 {[%emt 0:00:02]}
dxc4 {[%emt 0:00:17]} 22. Qe1 {[%emt 0:00:56]} Nd5 {[%emt 0:00:13]} 23. Nc5 {
[%emt 0:00:06]} Bf7 {[%emt 0:00:07]} 24. bxc4 {[%emt 0:00:10]} Nxe3 {[%emt 0:
00:01]} 25. Rxd8 {[%emt 0:00:14]} Rfxd8 {[%emt 0:00:01]} 26. Nb3 {[%emt 0:00:
11]} Rd3 {[%emt 0:00:09]} 27. Bf1 {[%emt 0:00:05]} Nxf1 {[%emt 0:00:02]} 28.
Qxf1 {[%emt 0:00:04]} Rbd8 {[%emt 0:00:06]} 29. Kg2 {[%emt 0:00:03]} Bh5 {
[%emt 0:00:04]} 30. Qe1 {[%emt 0:00:14]} Bf3+ {[%emt 0:00:06]} 31. Kh3 {
[%emt 0:00:06]} R8d6 {[%emt 0:00:03]} 0-1

[Event "10th Tal Memorial 2016 - Blitz"]
[Site "Moscow"]
[Date "2016.09.25"]
[Round "2"]
[White "Kramnik, Vladimir"]
[Black "Aronian, Levon"]
[Result "1/2-1/2"]
[ECO "A46"]
[WhiteElo "2808"]
[BlackElo "2795"]
[Annotator "ChessBase"]
[PlyCount "66"]
[EventDate "2016.??.??"]
[EventType "tourn"]
[EventCountry "RUS"]
[SourceTitle "playchess.com"]
[Source "ChessBase"]
[TimeControl "180+2"]

1. d4 {[%emt 0:00:00]} Nf6 {[%emt 0:00:00]} 2. Nf3 {[%emt 0:00:00]} e6 {
[%emt 0:00:02]} 3. e3 {[%emt 0:00:01]} c5 {[%emt 0:00:10]} 4. Bd3 {[%emt 0:00:
02]} d5 {[%emt 0:00:15]} 5. O-O {[%emt 0:00:02]} Nbd7 {[%emt 0:00:01]} 6. b3 {
[%emt 0:00:04]} g6 {[%emt 0:00:09]} 7. Bb2 {[%emt 0:00:05]} Bg7 {[%emt 0:00:02]
} 8. c4 {[%emt 0:00:03]} O-O {[%emt 0:00:02]} 9. cxd5 {[%emt 0:00:07]} Nxd5 {
[%emt 0:00:04]} 10. Qe2 {[%emt 0:00:07]} b6 {[%emt 0:00:09]} 11. Rd1 {[%emt 0:
00:03]} Bb7 {[%emt 0:00:07]} 12. Nbd2 {[%emt 0:00:03]} cxd4 {[%emt 0:00:09]}
13. Nxd4 {[%emt 0:00:02]} Nc5 {[%emt 0:00:08]} 14. Bc4 {[%emt 0:00:08]} Qe7 {
[%emt 0:00:10]} 15. Rac1 {[%emt 0:00:02]} Rfd8 {[%emt 0:00:03]} 16. Ba3 {
[%emt 0:00:06]} Qg5 {[%emt 0:00:44]} 17. N2f3 {[%emt 0:00:07]} Qh5 {[%emt 0:00:
10]} 18. Bxc5 {[%emt 0:01:03]} bxc5 {[%emt 0:00:02]} 19. Nb5 {[%emt 0:00:00]}
Be5 {[%emt 0:00:21]} 20. Nxe5 {[%emt 0:00:05]} Qxe5 {[%emt 0:00:01]} 21. Bxd5 {
[%emt 0:00:33]} Rxd5 {[%emt 0:00:04]} 22. Nc3 {[%emt 0:00:20]} Rxd1+ {[%emt 0:
00:09]} 23. Qxd1 {[%emt 0:00:01]} Qg5 {[%emt 0:00:02]} 24. Qf1 {[%emt 0:00:01]}
Rc8 {[%emt 0:00:12]} 25. Na4 {[%emt 0:00:19]} c4 {[%emt 0:00:04]} 26. Rxc4 {
[%emt 0:00:10]} Rxc4 {[%emt 0:00:02]} 27. bxc4 {[%emt 0:00:01]} Qa5 {[%emt 0:
00:06]} 28. Qd1 {[%emt 0:00:01]} Bc6 {[%emt 0:00:06]} 29. Nb2 {[%emt 0:00:01]}
Qxa2 {[%emt 0:00:04]} 30. Qd8+ {[%emt 0:00:01]} Kg7 {[%emt 0:00:01]} 31. Qd4+ {
[%emt 0:00:01]} Kg8 {[%emt 0:00:06]} 32. Qd8+ {[%emt 0:00:02]} Kg7 {[%emt 0:00:
01]} 33. Qd4+ {[%emt 0:00:00]} Kg8 {[%emt 0:00:00]} 1/2-1/2